Cogmind - Beta 16.1 @@@ ROGUE MODE // 2026.05.02 @ 17:59:15 Player: Tanner Result: Destroyed by NE-6FH(R) with Subdweller Beam Cannon Performance ------------- Evolutions (0) 0 Regions Visited (2) 400 Robots Destroyed (16) 80 Value Destroyed (379) 379 Prototype IDs (2) 40 Alien Tech Used (0) 0 Bonus (0) 0 TOTAL SCORE: 899 Bonus ------- None Cogmind --------- Core Integrity 0/250 Matter 294/300 Energy 80/100 System Corruption 0% Temperature Cool (9) Movement Walking (120) Location -10/Subcaves Parts ------- > --- POWER (1) -------- (None) > --- PROPULSION (2) --- Aluminum Leg > --- UTILITY (2) ------ Medium Storage Unit > --- WEAPON (2) ------- (None) > --- INVENTORY (10) --- Light Ion Engine Medium Storage Unit Scrap Shield Small Laser Light Assault Rifle Light Assault Rifle Subdweller Machine Gun Peak State ------------ > --- POWER ------------ Ion Engine > --- PROPULSION ------- Aluminum Leg Aluminum Leg > --- UTILITY ---------- Medium Storage Unit Small Matter Pod > --- WEAPON ----------- Small Laser Assault Rifle > --- INVENTORY -------- Light Ion Engine Aluminum Leg Aluminum Leg Medium Storage Unit Scrap Shield Small Laser Small Laser Light Assault Rifle Light Assault Rifle [Rating: 8] Favorites ----------- Power Light Ion Engine Engine Light Ion Engine Propulsion Aluminum Leg Leg Aluminum Leg Utility Small Matter Pod Storage Small Matter Pod Weapon Assault Rifle Energy Gun Small Laser Ballistic Gun Assault Rifle Build | -11 -10 -10 ------- Run | Yrd Mat Sub Slots Evolved . | . . . Power . | . . . Propulsion . | . . . Utility . | . . . Weapon . | . . . Parts Attached 16 | 6 8 2 Power 3 | 1 2 . Engine 3 | 1 2 . Core . | . . . Reactor . | . . . Propulsion 6 | 2 2 2 Treads . | . . . Leg 6 | 2 2 2 Wheel . | . . . Hover . | . . . Flight . | . . . Utility 2 | 1 1 . Device . | . . . Storage 2 | 1 1 . Processor . | . . . Hackware . | . . . Protection . | . . . Artifact . | . . . Weapon 5 | 2 3 . Energy Gun 2 | 1 1 . Energy Cannon . | . . . Ballistic Gun 3 | 1 2 . Ballistic Cannon . | . . . Launcher . | . . . Special Weapon . | . . . Impact Weapon . | . . . Slashing Weapon . | . . . Piercing Weapon . | . . . Special Melee Weapon . | . . . Unidentified Prototypes . | . . . Parts Lost 9 | . 2 7 Power 2 | . 1 1 Propulsion 3 | . . 3 Utility 1 | . . 1 Weapon 3 | . 1 2 Highest Loss Streak 6 | . 2 6 To Critical Strikes 1 | . . 1 Average Backups 5 | 1 4 8 Power . | . . 1 Propulsion 1 | . 1 1 Utility 1 | . . 1 Weapon 2 | . 1 3 Tool/Special . | . . . Unused Backups 9 | . 1 8 Power 1 | . . 1 Propulsion . | . . . Utility 3 | . 1 2 Weapon 5 | . . 5 Tool/Special . | . . . Average Slot Usage (%) 92 | . 96 85 Engine 12 | . 12 13 Leg 23 | . 28 15 Storage 27 | . 27 27 Energy Gun 7 | . 4 14 Ballistic Gun 19 | . 23 13 Peak Build Rating 8 | 6 7 8 Average Rating 6 | 4 6 6 On Entrance 4 | . 6 7 Avg Prop Armor Cover (%) . | . . . Naked Turns . | . . . Heaviest Build 19 | 7 19 19 Greatest Support 20 | 20 20 20 Greatest Overweight (x) 1 | . . 1 Average Overweight (x) . | . . . Largest Inventory Capacity 10 | 5 10 10 Average Capacity 9 | 5 9 10 Most Carried 10 | 3 8 10 Average Carried 5 | 1 4 9 Final Capacity 10 | 5 10 10 Final Carried 8 | 2 8 8 Class Distribution -------------------- 70% | Scavenger-Mutant 29% | Mutant Dominant Class ---------------- Scavenger-Mutant | -10/Materials Scavenger-Mutant | -10/Subcaves Resources | -11 -10 -10 ----------- Run | Yrd Mat Sub Matter Collected 545 | 316 216 13 Remotely . | . . . Salvage Created 471 | 60 335 76 Parts 38 | 4 29 5 Haulers Intercepted . | . . . Recyclers Shooed . | . . . Parts Field Recycled . | . . . Retrieved Matter . | . . . Parts Self-Destructed 3 | . . 3 Prevented . | . . . Parts Restored . | . . . Kills | -11 -10 -10 ------- Run | Yrd Mat Sub Combat Hostiles Destroyed 15 | 1 12 2 Guns 15 | 1 12 2 Classes Destroyed 4 | 2 1 1 Worker 1 | 1 . . Swarmer 6 | . 6 . Grunt 7 | 1 6 . Subdweller 2 | . . 2 Best Kill Streak 4 | 1 4 1 Combat Bots Only 4 | 1 4 1 Max Kills in Single Turn 1 | 1 1 1 Gunslinging . | . . . Exploded . | . . . Melee . | . . . Uniques/NPCs Destroyed . | . . . Combat | -11 -10 -10 -------- Run | Yrd Mat Sub Hostile Shots Fired 138 | 6 93 39 Missed 47 | 2 31 14 Hits 91 | 4 62 25 Projectile 91 | 4 62 25 Critical Strikes 1 | . . 1 Damage Taken 1182 | 46 562 574 Core 256 | 12 73 171 Absorbed by Shields . | . . . Core Remaining (%) 95 | 95 . . Volleys Fired 73 | 6 51 16 Largest 2 | 2 2 2 Hottest 60 | 60 60 60 Shots Fired 124 | 12 90 22 Gun 124 | 12 90 22 Cannon . | . . . Launcher . | . . . Special . | . . . Kinetic 85 | 6 72 7 Thermal 23 | . 8 15 Explosive . | . . . Electromagnetic 16 | 6 10 . Robot Hit Streak 10 | 4 10 2 Robot Miss Streak 5 | 1 5 5 Penetration Max . | . . . Secondary Targets 3 | . 3 . Max Gunslinging Chain 1 | . 1 . Shots Hit Robots 68 | 8 50 10 Core Hits 27 | 4 19 4 Critical Kills . | . . . Critical Parts Destroyed . | . . . Critical Strikes . | . . . Melee Attacks . | . . . Impact . | . . . Slashing . | . . . Piercing . | . . . Sneak Attacks . | . . . Combat Hostiles . | . . . Follow-up Attacks . | . . . Damage Inflicted 745 | 86 512 147 Guns 744 | 86 512 146 Cannons . | . . . Explosions . | . . . Melee . | . . . Ramming 1 | . . 1 Kinetic 494 | 44 403 47 Thermal 177 | . 78 99 Explosive . | . . . Electromagnetic 73 | 42 31 . Impact . | . . . Slashing . | . . . Piercing . | . . . Highest Corruption . | . . . Average Corruption . | . . . Corruption Purged . | . . . Corruption Blocked . | . . . Overload Shots . | . . . Overflow Damage . | . . . Projectiles . | . . . Explosions . | . . . Melee . | . . . Knockbacks . | . . . Impact . | . . . Kinetic . | . . . Secondary . | . . . Self-Inflicted Damage . | . . . Shots . | . . . Rammed . | . . . Targets Rammed 1 | . . 1 Kicked 1 | . . 1 Crushed . | . . . Highest Temperature 64 | 64 42 . Average Temperature 25 | 32 23 . Received Heat Transfer 294 | 24 150 120 Siege Activations . | . . . Martial Activations . | . . . Shielding Activations . | . . . Robots Disrupted . | . . . Combat Hostiles . | . . . Robots Corrupted . | . . . Combat Hostiles . | . . . Parts Fried . | . . . Impact Corruptions . | . . . Robots Melted . | . . . Combat Hostiles . | . . . Parts Melted . | . . . Heat Transferred 400 | . 175 225 Parts Sabotaged . | . . . Parts Stolen . | . . . Parts Stripped . | . . . Power Chain Reactions . | . . . Alert | -11 -10 -10 ------- Run | Yrd Mat Sub Maximum Alert Level . | . . . Low Security (%) 100 | 100 100 . Level 1 . | . . . Level 2 . | . . . Level 3 . | . . . Level 4 . | . . . Level 5 . | . . . High Security . | . . . Max Security . | . . . Peak Influence 114 | 20 114 . Initial 6 | . 6 . Average 48 | 3 58 . Influence Increases 359 | 25 334 . Destroy 0b10 Robot/C 260 | 20 240 . Destroy 0b10 Robot/NC 5 | 5 . . Destroy Leader 50 | . 50 . Successful Hack 12 | . 12 . Destroy Structure 2 | . 2 . Lose Combat Pursuer 30 | . 30 . Influence Decreases 359 | 15 246 98 Entered New Map 52 | . 4 48 Time Decay 277 | 15 222 40 Lost Part 30 | . 20 10 Squads Dispatched 3 | . 3 . Investigation 1 | . 1 . Extermination . | . . . Reinforcement 2 | . 2 . Assault . | . . . Garrison . | . . . Intercept . | . . . Searches Triggered . | . . . Construction Impeded . | . . . Haulers Reinforced . | . . . Active Scanning Responses . | . . . Cargo Convoy Interrupts . | . . . Stealth | -11 -10 -10 --------- Run | Yrd Mat Sub Distress Signals 1 | . 1 . Communications Jammed . | . . . Distress Signals . | . . . Times Spotted 31 | 1 18 12 Peak Tracking Total 7 | 1 6 7 Tactical Retreats 1 | . 1 . Traps | -11 -10 -10 ------- Run | Yrd Mat Sub Traps Triggered . | . . . Indirectly . | . . . Trap Hack Attempts . | . . . Triggered . | . . . Disarmed . | . . . Reprogrammed . | . . . Reused . | . . . Traps Extracted . | . . . Installed . | . . . Triggered . | . . . Machines | -11 -10 -10 ---------- Run | Yrd Mat Sub Machines Disabled . | . . . Max in Single Turn . | . . . Machines Repaired . | . . . Machines Dismantled . | . . . Machines Sabotaged . | . . . Overloaded Fab Kills . | . . . Hacking | -11 -10 -10 --------- Run | Yrd Mat Sub Machines Accessed 4 | . 4 . Terminals 3 | . 3 . Fabricators . | . . . Repair Stations 1 | . 1 . Recycling Units . | . . . Scanalyzers . | . . . Garrison Access . | . . . Total Hacks 13 | . 13 . Successful 8 | . 8 . Failed 5 | . 5 . Catastrophic . | . . . Database Lockouts . | . . . Manual . | . . . Terminals 10 | . 10 . Fabricators . | . . . Repair Stations 3 | . 3 . Recycling Units . | . . . Scanalyzers . | . . . Garrison Access . | . . . Terminal Hacks 7 | . 7 . Record 4 | . 4 . Prototype ID Bank 1 | . 1 . Alert Level 1 | . 1 . Zone Layout 1 | . 1 . Fabricator Hacks . | . . . Repair Station Hacks 1 | . 1 . Scan Component 1 | . 1 . Recycling Unit Hacks . | . . . Scanalyzer . | . . . Garrison Access Hacks . | . . . Unauthorized Hacks . | . . . Terminals . | . . . Fabricators . | . . . Repair Stations . | . . . Recycling Units . | . . . Scanalyzers . | . . . Garrison Access . | . . . Data Cores Recovered . | . . . Used . | . . . Hacking Detections 4 | . 4 . Full Trace Events 3 | . 3 . Feedback Events . | . . . Feedback Blocked . | . . . Robot Schematics Acquired . | . . . Robots Built . | . . . Authchips . | . . . Time . | . . . Total Robot Build Rating . | . . . Part Schematics Acquired . | . . . Parts Built . | . . . Authchips . | . . . Time . | . . . Total Part Build Rating . | . . . Part Studies Acquired . | . . . Parts Repaired . | . . . Time . | . . . Parts Recycled . | . . . Recycled Matter . | . . . Retrieved Matter . | . . . Retrieved Components . | . . . Parts Scanalyzed . | . . . Part Schematics Acquired . | . . . Parts Damaged . | . . . Bothacking | -11 -10 -10 ------------ Run | Yrd Mat Sub Used RIF Installer . | . . . Robots Hacked . | . . . Non-combat . | . . . Combat . | . . . Robot Hacks Applied . | . . . Relay Couplers Released . | . . . Fabnet Peak Effective % . | . . . Robots Rewired . | . . . Allies Hacked . | . . . Hacks Repelled . | . . . Allies | -11 -10 -10 -------- Run | Yrd Mat Sub Total Allies . | . . . Largest Group . | . . . Highest-Rated Group . | . . . Highest-Rated Ally . | . . . Total Orders . | . . . Ally Attacks . | . . . Total Damage . | . . . Kills . | . . . Allies Corrupted . | . . . Allies Melted . | . . . Intel | -11 -10 -10 ------- Run | Yrd Mat Sub Active Infowar (turns) . | . . . Robot Analysis Total . | . . . Derelict Logs Recovered . | . . . Drone Launches . | . . . Drone Recoveries . | . . . Exploration | -11 -10 -10 ------------- Run | Yrd Mat Sub Turns Passed 958 | 124 528 306 Spaces Moved 547 | 92 305 150 Core 25 | 25 . . Treads . | . . . Legs 522 | 67 305 150 Wheels . | . . . Hover . | . . . Flight . | . . . Fastest Speed 50 | 50 120 120 Average Speed 131 | 100 120 174 Slowest Speed 190 | 120 120 190 Overloaded Moves . | . . . Propulsion Burnouts . | . . . Robots Hopped . | . . . Potential Cave-ins . | . . . Cave-ins Triggered . | . . . Exploration Rate (%) 16 | 7 31 12 Regions Visited 2 Branch Regions 1 Pre-discovered Areas . | . . . Known Exits Taken . | . . . Unknown Exits Taken 2 | 1 1 . Scrap Searched . | . . . Spaces Dug . | . . . Terrain Destroyed . | . . . Melee . | . . . Projectile . | . . . AOE . | . . . Terrain Rammed . | . . . Walls Destroyed . | . . . Machines Disabled . | . . . Actions | -11 -10 -10 --------- Run | Yrd Mat Sub Total 670 | 113 385 172 Wait . | . . . Move 545 | 91 304 150 Hop . | . . . Pick Up 26 | 9 15 2 Fast Attach . | . . . Attach 12 | 6 4 2 Detach 1 | . 1 . Swap 4 | . 4 . Drop 8 | 1 6 1 Fire 73 | 6 51 16 Melee . | . . . Ram . | . . . Kick 1 | . . 1 Crush . | . . . Escape Stasis . | . . . Rewire . | . . . Trap . | . . . Miscellaneous . | . . . Route ------- -11/Scrapyard -10/Materials (discovered 2 exits: [*Mat] / [*Sub]) -10/Subcaves (discovered 1 exit: [*Scr]) History --------- Turn | Location | Event 2 | -11/Scrapyard | Met Revision 17 85 | -11/Scrapyard | Discovered new exit (range 8) 125 | -11/Scrapyard | Entered Materials 502 | -10/Materials | Discovered new exit (range 9) 569 | -10/Materials | Build established: Scavenger-Mutant 642 | -10/Materials | Discovered new exit (range 8) 653 | -10/Materials | Entered Subcaves 654 | -10/Subcaves | Approached by a straggling Scientist 655 | -10/Subcaves | Shifting Twisted Machinery released Mak. Light Armor Plating 660 | -10/Subcaves | Scientist uncovered a shortcut to Scraptown 860 | -10/Subcaves | A swath of the cavern ceiling suddenly collapsed 930 | -10/Subcaves | Shifting Twisted Machinery released Sub. Beam Cannon 932 | -10/Subcaves | Ambushed by swarm of Subdwellers 932 | -10/Subcaves | Ambushed by Subdwellers from Twisted Machinery 948 | -10/Subcaves | Core integrity fell below 50% 952 | -10/Subcaves | Core integrity fell below 20% 959 | -10/Subcaves | Destroyed by NE-6FH(R) with Subdweller Beam Cannon Last Messages --------------- 01-UKB(R) emerges from the Twisted Machinery. 7Y-Q4Z(R) emerges from the Twisted Machinery. HV Slug penetrates Wall. HV Slug penetrates CE-TSO(R). 3V-AR2(h) destroyed. DE-ATC(R) emerges from the Twisted Machinery. Ion Engine destroyed. PE-N69(g): "Sorry we're late! Had another grouchy Sub to deal with. Who's the new fellow?" NE-6FH(R) affixes Scrap Shield Fragment to Scrap Shield. Aluminum Leg destroyed. Sml. Matter Pod destroyed. RI-ZZS(R) suffers critical hit (Meltdown). Kicked YE-GVG(R). YE-GVG(R) destroyed. Critical hit (Destroy). Sml. Laser destroyed. Aluminum Leg destroyed. Map ----- +----------------------------------------------------+ | ?????????????????????????????????????????????????? | | ?????????????????????????????????????????????????? | | ?????????????????????????????????????????????????? | | ?????????????????????????????????????????????????? | | ?????????????????????????????????????????????????? | | ?????????????????????????????????????????????????? | | ?????????????????????????????????????????????????? | | ?????????????????????????????????????????????????? | | ?????????????????????????????????????????????????? | | ?????????????????????????????????????????????????? | | ?????????????????????????????????????????????????? | | ?????????????????????????????????????????????????? | | ?????????????????????#? #??????????? ???????????? | | ????????????????????? ? #????????? ?????????? | | ????????????????????? ????????? #????????? | | ???????????????????? ?????????? ?????????? | | ???????????????????? ?????????? ?????????? | | ????????????????????? " #?????????? ?????????? | | ?????????????????????" "] ????????### ??????????? | | ????????????????"???? " ???###?#### ??????????? | | ??????????????? ""??## " ????# ##;;"# ??????????? | | ???????????????? ""?? " ???## ;## ???????????? | | ???????????????? "" ## #?### ### ???????????? | | ?????????????????#"" ###& ####???????????? | | ????????????????## ""; #&R&& ;;####?????????? | | ????????????????# "" gg@!&[% %# " ##????????? | | ????????????????# ""#g%R%! "## ##???????? | | ????????????????# ####### =% "## #???????? | | ????????????????# ??????# [;## #???????? | | ????????????????# ?????? ## #####???????? | | ????????????????## ???##? ### ##??????????? | | ?????????????????#????# ### ##?????????? | | ?????????????????????## " ### #?????????? | | ?????????????????????# " "#?# #?????????? | | ????????????????????## " ??# #?????????? | | ???????????????????## % ###=!%## #?????????? | | ???????????????????# ##%%#### #?????????? | | ???????????????????# % %&###? #????????? | | ???????????????##??# %## %* #?# % #????????? | | ??????????????## #????????# ##??& #????????? | | ??????????????# ??????## ##???% #???????? | | ??????????????# ?????## ##????% % #???????? | | ???????????????? ???##% #????? ##???????? | | ?????????????????# #?## ##????? #????????? | | ??????????????????#% ## ##??????? #????????? | | ?????????????????## ###?????? #????????? | | ????????????????## #??????? ?????????? | | ????????????????# % ###?????????????????? | | ????????????????### ##???????????????????? | | ??????????????????# % ###????????????????????? | +----------------------------------------------------+ Best States ------------- Heat Dissipation 25 Energy Generation 10 Energy Capacity 250 Matter Stores 350 Matter Capacity 350 Sight Range 16 Terrain Scan Density 10 Evasion (%) 55 Item Schematics ----------------- None Robot Schematics ------------------ None Fabricated ------------ Nothing Repaired ---------- Nothing Studied --------- None Alien Tech Used ----------------- None Achievements -------------- DATA ERROR: Steam Global Achievement% Nice Directions, Buddy Storm Trooper Uninvited Guest Challenges ------------ None Game ------ Seed ExperimentalVortexFlakker Manual? 0 Play Time 00:10:48 Cumulative 0.8 hours Start 2026.05.02 @ 17:50:31 End 2026.05.02 @ 17:59:15 Sessions 1 Manual Loads 0 Difficulty Rogue Special Mode None Game No. 2 Rogue 2 Adventurer 0 Explorer 0 Win Type - Total 0 Types 0/0/0/0/0/0/0/0/0/0 Lore% 0 Gallery% 2 Achievement% 5 Wizard Run 0 Options --------- Layout 1 ASCII 0 Keyboard 0 Movement Arrows Keybinds 0 Fullscreen 1 Font 24/Smallcaps Map View 50x35 Zoom Use 0% Tactical HUD 0 Map Filters NONE Filters NONE Steam 0 RUN: bea3d035-42c4-4fce-a86c-f57137a9c02c